bitfinex/quotes_BTCUSD_20240815
["timestamp","ask_amount","ask_price","bid_price","bid_amount"]
[1723747682518,1.44162621,58003.0,58002.0,0.014]
[1723747682760,0.172424,57997.0,57995.0,0.00105739]
[1723747683000,0.56523276,57996.0,57995.0,0.00105739]
[1723747683240,1.270891,57996.0,57995.0,0.00105739]
[1723747683452,1.936042,57996.0,57995.0,0.00105739]
[1723747683661,2.83157939,57996.0,57995.0,0.00105739]
[1723747683877,2.011064,57987.0,57978.0,0.00823]
[1723747684090,2.79655164,57987.0,57978.0,0.00823]
[1723747684307,3.16210416,57987.0,57978.0,0.00823]
[1723747685622,0.396273,57980.0,57978.0,0.00823]
[1723747685869,2.30629814,57980.0,57978.0,0.00823]
[1723747686081,2.43505075,57980.0,57978.0,0.00823]
[1723747686290,2.46564347,57980.0,57978.0,0.00823]
[1723747686502,2.3591802,57980.0,57978.0,0.00823]
[1723747686713,1.12307503,57980.0,57978.0,0.00823]
[1723747686931,0.86642804,57980.0,57978.0,0.00823]
[1723747687355,0.86642804,57980.0,57979.0,0.001822]
[1723747687356,0.87845543,57980.0,57979.0,0.001822]
[1723747687570,1.05092843,57980.0,57979.0,0.001822]
[1723747687784,1.03692843,57980.0,57979.0,0.001822]
[1723747688204,1.05092843,57980.0,57979.0,0.001822]
[1723747688424,1.14130072,57980.0,57979.0,0.001822]
[1723747688631,0.95482772,57980.0,57979.0,0.000822]
[1723747688838,1.14130072,57980.0,57979.0,0.001822]
[1723747689042,0.68525543,57980.0,57979.0,0.000822]
[1723747689248,0.19955454,57980.0,57979.0,0.000822]
[1723747689481,0.19955454,57980.0,57979.0,0.001822]
[1723747689482,0.21255454,57980.0,57979.0,0.001822]
[1723747689691,0.19855454,57980.0,57979.0,0.001822]
[1723747689898,0.26094999,57980.0,57979.0,0.001822]
[1723747690329,0.27294999,57980.0,57979.0,0.001822]
[1723747690541,0.039,57980.0,57979.0,0.71445]
[1723747690772,0.039,57980.0,57979.0,1.789554]
[1723747691030,0.004046,57987.0,57986.0,0.862275]
[1723747691236,0.004046,57987.0,57986.0,1.247475]
[1723747691455,0.004046,57987.0,57986.0,2.40834954]
[1723747691671,0.004046,57987.0,57986.0,1.94432869]
[1723747691880,0.004046,57987.0,57986.0,1.546975]
[1723747692585,0.004046,57987.0,57986.0,1.891885]
[1723747692801,0.004046,57987.0,57986.0,2.07743954]
[1723747692802,0.005046,57987.0,57986.0,2.07743954]
[1723747693641,0.006046,57987.0,57986.0,2.08743954]
[1723747694716,0.00090421,57998.0,57997.0,0.517267]
[1723747694930,0.00090421,57998.0,57997.0,0.921167]
[1723747695144,0.00090421,57998.0,57997.0,1.807657]
[1723747695355,0.00090421,57998.0,57997.0,2.21900229]
[1723747695566,0.00090421,57998.0,57997.0,2.66744129]
[1723747695776,0.00090421,57998.0,57997.0,2.7473674]
[1723747695985,0.00090421,57998.0,57997.0,2.69335132]
[1723747696192,0.00090421,57998.0,57997.0,2.23403281]
[1723747696413,0.00090421,57998.0,57997.0,2.70321241]
[1723747696627,0.00090421,57998.0,57997.0,2.89305732]
[1723747696839,0.00090421,58025.0,57997.0,2.89305732]
[1723747696840,0.51466362,58017.0,58016.0,0.5812]
[1723747697050,0.51466362,58017.0,58016.0,1.44303]
[1723747697260,0.00090421,58025.0,58023.0,0.517035]
[1723747697465,0.00090421,58025.0,58023.0,1.254425]
[1723747697681,0.00090421,58025.0,58023.0,1.40686869]
[1723747698106,0.00090421,58025.0,58023.0,0.54514369]
[1723747698313,0.00090421,58025.0,58023.0,0.3927]
[1723747698977,0.00090421,58025.0,58023.0,0.565045]
[1723747699201,0.00090421,58025.0,58023.0,0.579045]
[1723747699409,0.00090421,58025.0,58023.0,0.4047]
[1723747699874,0.00090421,58025.0,58023.0,0.4187]
[1723747700098,0.00090421,58025.0,58023.0,0.4067]
[1723747700314,0.00090421,58025.0,58023.0,0.014]
[1723747700957,0.00090421,58025.0,58023.0,0.028]
[1723747701387,0.00090421,58025.0,58023.0,0.014]
[1723747701800,0.00090421,58025.0,58023.0,0.200345]
[1723747702006,0.00090421,58025.0,58023.0,0.545035]
[1723747702220,0.00090421,58025.0,58023.0,0.87917141]
[1723747702426,0.00090421,58025.0,58023.0,0.937835]
[1723747702842,0.00090421,58025.0,58023.0,0.951835]
[1723747703261,0.00090421,58025.0,58023.0,0.4208]
[1723747703473,0.00090421,58025.0,58023.0,0.014]
[1723747703652,0.00090421,58025.0,58018.0,0.4879]
[1723747703896,0.00090421,58025.0,58023.0,0.014]
[1723747704560,0.00090421,58025.0,58023.0,0.028]
[1723747705112,0.00090421,58025.0,58023.0,0.014]
[1723747705572,0.00090421,58025.0,58023.0,0.028]
[1723747705778,0.00090421,58025.0,58023.0,0.014]
[1723747706193,0.00090421,58025.0,58019.0,0.1]
[1723747706447,0.00090421,58025.0,58023.0,0.028]
[1723747706673,0.17676736,58024.0,58023.0,0.028]
[1723747706888,1.53688148,58024.0,58023.0,0.028]
[1723747707104,1.91566196,58024.0,58023.0,0.014]
[1723747707542,0.172398,58005.0,58004.0,0.51466362]
[1723747707753,0.17155454,58005.0,58004.0,0.51466362]
[1723747707958,0.4095,58014.0,57998.0,0.000822]
[1723747708167,0.17155454,58013.0,57998.0,0.000822]
[1723747708619,0.517146,58011.0,57998.0,0.000822]
[1723747708807,0.17155454,58010.0,57998.0,0.000822]
[1723747709053,0.17155454,58010.0,58004.0,0.004]
[1723747709271,0.51556783,58025.0,58008.0,0.08577727]
[1723747709272,0.00090421,58024.0,58008.0,0.08577727]
[1723747709495,0.17155454,58023.0,58016.0,0.08577727]
[1723747709704,0.00090421,58024.0,58017.0,0.3925]
[1723747712395,0.00090421,58024.0,58017.0,0.3965]
[1723747712633,0.00090421,58024.0,58017.0,0.4015]
[1723747712845,0.17155454,58023.0,58017.0,0.009]
[1723747713053,0.6062,58022.0,58017.0,0.004]
[1723747713260,0.17155454,58021.0,58017.0,0.004]
[1723747713472,0.00090421,58024.0,58017.0,0.01]
[1723747713894,0.00090421,58024.0,58017.0,0.004]
[1723747714737,0.17155454,58023.0,58017.0,0.004]
[1723747714951,0.17155454,58023.0,58014.0,0.3925]
[1723747715377,0.17155454,58023.0,58017.0,0.006]
[1723747715580,0.17155454,58023.0,58014.0,0.3925]
[1723747715785,0.172357,58019.0,58017.0,0.003]
[1723747715991,0.17155454,58019.0,58017.0,0.009]
[1723747716468,0.17155454,58019.0,58017.0,0.006]
[1723747716677,0.17155454,58019.0,58017.0,0.009]
[1723747716886,0.17155454,58019.0,58017.0,0.003]
[1723747717091,0.17155454,58019.0,58009.0,0.18577727]
[1723747717501,0.17155454,58019.0,58017.0,0.005]
[1723747718148,0.17155454,58019.0,58017.0,0.008]
[1723747718429,0.17155454,58019.0,58017.0,0.005]
[1723747718841,0.17155454,58019.0,58009.0,0.1]
[1723747719075,0.17155454,58019.0,58017.0,0.003]
[1723747719604,0.17155454,58019.0,58009.0,0.105]
[1723747719605,0.17155454,58019.0,58009.0,0.1]
[1723747719806,0.17155454,58019.0,58017.0,0.007]
[1723747720638,0.00090421,58024.0,58018.0,0.188]
[1723747720838,0.17155454,58023.0,58018.0,0.188]
[1723747721040,0.00090421,58024.0,58019.0,0.4082]
[1723747721260,0.00090421,58024.0,58022.0,0.08577727]
[1723747721422,0.00090421,58024.0,58023.0,0.172345]
[1723747721668,0.00090421,58024.0,58023.0,0.925235]
[1723747722111,0.00090421,58025.0,58024.0,1.206394]
[1723747722324,0.00090421,58029.0,58028.0,0.516991]
[1723747722531,0.00090421,58029.0,58025.0,0.5962]
[1723747722737,0.00090421,58029.0,58008.0,0.13689947]
[1723747722738,0.172342,58024.0,58023.0,0.014]
[1723747722934,0.172342,58024.0,58005.0,0.0511222]
[1723747722935,0.51623854,58024.0,58013.0,0.4082]
[1723747723136,0.52194341,58023.0,58013.0,0.4082]
[1723747723346,0.00569387,58022.0,58013.0,0.4082]
[1723747723548,0.17724841,58022.0,58013.0,0.4082]
[1723747723750,0.00569387,58021.0,58012.0,0.188]
[1723747723951,0.17804487,58021.0,58013.0,0.014]
[1723747724192,0.00569417,58020.0,58013.0,0.014]
[1723747724395,0.17155454,58022.0,58013.0,0.014]
[1723747724396,0.00569422,58021.0,58013.0,0.014]
[1723747724796,0.17155454,58022.0,58013.0,0.014]
[1723747724996,0.17155454,58022.0,58013.0,0.016]
[1723747725202,0.00569408,58021.0,58013.0,0.016]
[1723747725400,0.00569408,58021.0,58017.0,0.3987]
[1723747725791,0.344692,58023.0,58013.0,0.001]
[1723747725995,0.01000303,58022.0,58019.0,0.001]
[1723747726186,0.18235201,58022.0,58019.0,0.001]
[1723747726391,0.00569408,58021.0,58019.0,0.001]
[1723747726672,0.00430893,58022.0,58019.0,0.001]
[1723747726896,0.86607894,58020.0,58019.0,0.001]
[1723747727051,1.60380244,58020.0,58019.0,0.001]
[1723747727374,2.01173849,58020.0,58019.0,0.004]
[1723747727549,2.03251353,58020.0,58019.0,0.004]
[1723747727739,2.00604533,58020.0,58019.0,0.004]
[1723747727936,2.18329501,58020.0,58019.0,0.004]
[1723747728537,2.52800301,58020.0,58019.0,0.001]
[1723747728738,2.92240773,58020.0,58019.0,0.001]
[1723747729004,3.02240773,58020.0,58019.0,0.001]
[1723747729221,1.55124,58018.0,58017.0,0.000822]
[1723747729383,1.55124,58018.0,57998.0,0.000822]
[1723747729384,1.094549,57999.0,57998.0,0.000822]
[1723747729613,1.96146468,57999.0,57998.0,0.000822]
[1723747730233,1.61663168,57999.0,57998.0,0.000822]
[1723747730437,0.69449868,57999.0,57998.0,0.000822]
[1723747730810,1.03933168,57999.0,57998.0,0.000822]
[1723747731016,1.03363654,57999.0,57998.0,0.000822]
[1723747731228,1.55572087,57999.0,57998.0,0.000822]
[1723747731441,1.38416633,57999.0,57998.0,0.000822]
[1723747731845,1.40019207,57999.0,57998.0,0.000822]
[1723747732048,0.69650033,57999.0,57998.0,0.000822]
[1723747732300,0.35166733,57999.0,57998.0,0.000822]
[1723747732833,0.69450033,57999.0,57998.0,0.000822]
[1723747733045,0.172419,57998.0,57989.0,0.08577727]
[1723747733244,0.172419,57998.0,57982.0,0.08577727]
[1723747733245,0.6945096,57998.0,57982.0,0.08577727]
[1723747733449,0.68881254,57998.0,57982.0,0.08577727]
[1723747733798,0.34397354,57998.0,57982.0,0.26796417]
[1723747733992,0.17155454,57998.0,57982.0,0.26796417]
[1723747734195,0.17155454,57998.0,57991.0,0.4087]
[1723747734432,0.34397354,57998.0,57991.0,0.4087]
[1723747734628,0.68881254,57998.0,57986.0,0.4087]
[1723747734832,1.17496529,57998.0,57986.0,0.4087]
[1723747735032,1.03365154,57998.0,57986.0,0.4087]
[1723747735658,1.03565154,57998.0,57986.0,0.4087]
[1723747735858,1.38049054,57998.0,57982.0,0.4087]
[1723747736113,1.40349054,57998.0,57982.0,0.4087]
[1723747736323,0.172448,57989.0,57982.0,0.4087]
[1723747736536,0.17155454,57988.0,57982.0,0.4087]
[1723747736809,0.17155454,57988.0,57980.0,0.1887]
[1723747736810,0.172455,57987.0,57980.0,0.1887]
[1723747737027,0.34401154,57986.0,57980.0,0.1887]
[1723747737452,0.344917,57985.0,57980.0,0.1887]
[1723747737666,0.517419,57980.0,57979.0,0.000822]
[1723747737875,1.03391954,57980.0,57979.0,0.000822]
[1723747738081,0.17155454,57980.0,57979.0,0.000822]
[1723747738474,0.344895,57989.0,57979.0,0.000822]
[1723747738714,0.51741,57981.0,57980.0,0.01]
[1723747738948,1.41340454,57981.0,57980.0,0.01]
[1723747739164,1.41340454,57981.0,57979.0,0.000822]
[1723747739165,0.862365,57980.0,57979.0,0.000822]
[1723747739383,0.862365,57980.0,57979.0,0.010822]
[1723747739384,1.11345065,57980.0,57979.0,0.010822]
[1723747740430,0.68897354,57980.0,57979.0,0.01]
[1723747740639,0.34402754,57980.0,57979.0,0.01]
[1723747740846,1.03391954,57980.0,57979.0,0.01]
[1723747741057,0.517428,57979.0,57978.0,0.00823]
[1723747741268,1.03393454,57979.0,57978.0,0.00823]
[1723747741487,1.48227939,57979.0,57978.0,0.00823]
[1723747741705,2.52953139,57979.0,57978.0,0.00823]
[1723747741960,2.53523134,57979.0,57978.0,0.00823]
[1723747742174,2.53523134,57979.0,57976.0,0.00822]
[1723747742175,1.775938,57977.0,57976.0,0.00822]
[1723747742389,2.77935898,57977.0,57976.0,0.00822]
[1723747742599,2.88920528,57977.0,57976.0,0.00822]
[1723747742833,2.91220528,57977.0,57976.0,0.00822]
[1723747743074,2.56724128,57977.0,57976.0,0.00822]
[1723747743286,2.72894952,57977.0,57976.0,0.00822]
[1723747743703,2.72894952,57977.0,57971.0,0.00842]
[1723747743704,1.552473,57972.0,57971.0,0.00842]
[1723747743913,2.23432749,57972.0,57971.0,0.00842]
[1723747744361,2.22862754,57972.0,57971.0,0.00842]
[1723747744574,2.40018208,57972.0,57971.0,0.00842]
[1723747744991,2.40618208,57972.0,57971.0,0.00842]
[1723747746991,2.41971226,57972.0,57971.0,0.00842]
[1723747748074,2.41971257,57972.0,57971.0,0.00842]
[1723747748280,2.242457,57972.0,57971.0,0.00842]
[1723747750339,1.897463,57972.0,57971.0,0.00842]
[1723747750548,1.88763354,57972.0,57971.0,0.00842]
[1723747751238,1.0803463,57972.0,57971.0,0.00842]
[1723747751463,0.69304554,57972.0,57971.0,0.00842]
[1723747751674,1.18247664,57972.0,57971.0,0.00842]
[1723747752157,1.03203954,57972.0,57971.0,0.00842]
[1723747752374,1.03903954,57972.0,57971.0,0.00942]
[1723747752584,1.03903954,57972.0,57971.0,0.008598]
[1723747753254,0.69404554,57972.0,57971.0,0.008598]
[1723747753466,0.71704554,57972.0,57971.0,0.008598]
[1723747753686,0.71004554,57972.0,57971.0,0.007598]
[1723747753898,0.19455454,57972.0,57971.0,0.007598]
[1723747754107,0.17155454,57972.0,57971.0,0.007598]
[1723747754319,0.18155454,57972.0,57971.0,0.009598]
[1723747754539,0.18155454,57972.0,57971.0,0.008598]
[1723747754956,0.17455454,57972.0,57971.0,0.007598]
[1723747755165,0.17155454,57972.0,57971.0,0.007598]
[1723747755371,0.17355454,57972.0,57971.0,0.007598]
[1723747755588,0.17655454,57972.0,57971.0,0.007598]
[1723747755800,0.005,57972.0,57971.0,0.597098]
[1723747756005,0.0009053,57979.0,57978.0,0.517437]
[1723747756219,0.0009053,57979.0,57978.0,0.84775627]
[1723747756437,0.0009053,57979.0,57978.0,1.19271427]
[1723747756648,0.0009053,57979.0,57978.0,1.29271427]
[1723747757683,0.0009053,57979.0,57978.0,0.94775627]
[1723747757892,0.0019053,57979.0,57978.0,0.96175627]
[1723747758097,0.0019053,57979.0,57978.0,0.97575627]
[1723747758511,0.0019053,57979.0,57978.0,0.94775627]
[1723747758512,0.0009053,57979.0,57978.0,0.94775627]
[1723747758714,0.0019053,57979.0,57978.0,1.30671427]
[1723747758919,0.0019053,57979.0,57978.0,1.65167227]
[1723747759537,0.344799,58005.0,57989.0,0.4154]
[1723747759742,0.51466362,57995.0,57989.0,0.4154]
[1723747759951,0.17155454,58001.0,57989.0,0.4154]
[1723747760975,0.17155454,58001.0,57989.0,0.4204]
[1723747761180,0.17155454,58001.0,57989.0,0.4154]
[1723747761389,0.17255454,58001.0,57989.0,0.4154]
[1723747761631,0.17255454,58001.0,57988.0,0.1811]
[1723747761632,0.344849,57997.0,57988.0,0.1811]
[1723747761862,0.172429,57995.0,57988.0,0.1811]
[1723747762095,0.1758658,57994.0,57988.0,0.1811]
[1723747763039,0.17155454,57994.0,57988.0,0.1811]
[1723747763846,0.17155454,57994.0,57988.0,0.1871]
[1723747764308,0.08577727,58012.0,57989.0,0.4039]
[1723747764309,0.172403,58004.0,57989.0,0.4039]
[1723747764512,0.0009053,58001.0,57989.0,0.4039]
[1723747764715,0.17155454,58000.0,57989.0,0.4039]
[1723747764917,0.001,57994.0,57989.0,0.4039]
[1723747765325,0.17155454,58000.0,57989.0,0.4039]
[1723747765956,0.172419,57998.0,57989.0,0.4039]
[1723747766170,0.172445,57990.0,57988.0,0.1811]
[1723747766380,0.17155454,57990.0,57988.0,0.1811]
[1723747766821,0.17155454,57990.0,57989.0,0.003]
[1723747767291,0.17155454,57990.0,57988.0,0.1811]
[1723747767501,0.17255454,57990.0,57988.0,0.2031]
[1723747767710,0.17255454,57990.0,57988.0,0.1921]
[1723747768095,0.17155454,57990.0,57988.0,0.1811]
[1723747768340,0.17155454,57990.0,57989.0,0.007]
[1723747768568,0.17255454,57990.0,57989.0,0.007]
[1723747768981,1.03477154,57990.0,57989.0,0.007]
[1723747769182,1.6643874,57990.0,57989.0,0.013]
[1723747769824,0.17255454,57990.0,57989.0,0.007]
[1723747770037,0.17255454,57990.0,57989.0,0.1941]
[1723747770250,0.17155454,57990.0,57989.0,0.1871]
[1723747770459,0.17155454,57990.0,57989.0,0.1981]
[1723747770731,0.17255454,57990.0,57989.0,0.1871]
[1723747770999,0.34499754,57990.0,57989.0,0.1871]
[1723747771205,0.17155454,57990.0,57988.0,0.1871]
[1723747771405,0.17155454,57990.0,57989.0,0.003]
[1723747771642,0.000822,57990.0,57989.0,0.003]
[1723747772114,0.000822,57990.0,57988.0,0.1871]
[1723747773059,0.000822,57990.0,57989.0,0.006]
[1723747773370,0.000822,57990.0,57973.0,0.344987]
[1723747773371,0.17237654,57990.0,57981.0,0.4039]
[1723747773582,0.344932,57983.0,57976.0,0.4039]
[1723747773798,0.17155454,57982.0,57976.0,0.4039]
[1723747774015,0.17155454,57983.0,57976.0,0.4039]
[1723747774225,0.17155454,57982.0,57976.0,0.4039]
[1723747774438,0.34402254,57982.0,57976.0,0.4039]
[1723747774653,0.17155454,57982.0,57976.0,0.4039]
[1723747774897,0.17155454,57982.0,57973.0,0.1871]
[1723747775101,0.344948,57980.0,57973.0,0.1871]
[1723747775306,0.17586691,57979.0,57973.0,0.1871]
[1723747775516,0.344963,57978.0,57973.0,0.1871]
[1723747775728,0.52083091,57977.0,57972.0,0.000823]
[1723747775951,0.68903654,57973.0,57972.0,0.000823]
[1723747776178,1.40201254,57973.0,57972.0,0.000823]
[1723747776389,1.92231244,57973.0,57972.0,0.000823]
[1723747777293,2.61228844,57973.0,57972.0,0.000823]
[1723747777567,2.68766443,57973.0,57972.0,0.001823]
[1723747777777,3.04581897,57973.0,57972.0,0.001823]
[1723747777957,3.04581897,57973.0,57964.0,0.00819]
[1723747777958,0.773717,57965.0,57964.0,0.00819]
[1723747778194,2.00363899,57965.0,57964.0,0.00819]
[1723747778397,2.87510949,57965.0,57964.0,0.00819]
[1723747779042,2.70355495,57965.0,57964.0,0.00819]
[1723747779254,2.69367296,57965.0,57964.0,0.00819]
[1723747779460,2.68797437,57965.0,57964.0,0.00819]
[1723747779670,2.70352329,57965.0,57964.0,0.00919]
[1723747779882,2.87507783,57965.0,57964.0,0.00819]
[1723747780301,2.47992329,57965.0,57964.0,0.00919]
[1723747780512,2.10907781,57965.0,57964.0,0.00819]
[1723747780728,2.33267781,57965.0,57964.0,0.00819]
[1723747780945,2.53003442,57965.0,57964.0,0.00819]
[1723747781243,2.53903442,57965.0,57964.0,0.00919]
[1723747781458,1.93147781,57965.0,57964.0,0.00919]
[1723747781660,1.03414154,57965.0,57964.0,0.00819]
[1723747781867,1.13755569,57965.0,57964.0,0.00819]
[1723747782081,1.14655569,57965.0,57964.0,0.00919]
[1723747782285,1.04314154,57965.0,57964.0,0.01019]
[1723747783448,1.03414154,57965.0,57964.0,0.00819]
[1723747783679,0.35307154,57965.0,57964.0,0.00919]
[1723747783889,0.69810654,57965.0,57964.0,0.01019]
[1723747784098,1.04314154,57965.0,57964.0,0.01019]
[1723747784297,0.34506,57961.0,57958.0,0.00822]
[1723747784525,0.17155454,57960.0,57958.0,0.00822]
[1723747784739,0.517606,57959.0,57958.0,0.00822]
[1723747784945,0.68916054,57959.0,57958.0,0.00822]
[1723747785157,0.17155454,57959.0,57958.0,0.00822]
[1723747785368,0.34408954,57959.0,57958.0,0.00822]
[1723747785999,0.68916054,57959.0,57958.0,0.00822]
[1723747786209,0.17155454,57959.0,57958.0,0.00822]
[1723747786635,0.34408954,57959.0,57958.0,0.00822]
[1723747786834,0.34808954,57959.0,57958.0,0.00822]
[1723747787295,0.34408954,57959.0,57958.0,0.00822]
[1723747787782,0.34408954,57959.0,57958.0,0.01122]
[1723747788241,0.34408954,57959.0,57958.0,0.00822]
[1723747788478,0.34408954,57959.0,57958.0,0.01122]
[1723747788701,0.34408954,57959.0,57958.0,0.01322]
[1723747789201,0.34408954,57959.0,57958.0,0.01122]
[1723747789681,0.68916054,57959.0,57958.0,0.01122]
[1723747789912,0.34408954,57959.0,57958.0,0.00822]
[1723747790164,0.34408954,57959.0,57958.0,0.01022]
[1723747790409,1.48272309,57959.0,57958.0,0.01122]
[1723747790639,1.48272309,57959.0,57958.0,0.00822]
[1723747790640,1.37930254,57959.0,57958.0,0.00822]
[1723747790870,1.37930254,57959.0,57958.0,0.01122]
[1723747790871,1.40230254,57959.0,57958.0,0.01122]
[1723747791115,1.91892808,57959.0,57958.0,0.01122]
[1723747791350,1.91892808,57959.0,57958.0,0.00822]
[1723747791833,1.92192808,57959.0,57958.0,0.00822]
[1723747792336,1.92192808,57959.0,57943.0,0.4129]
[1723747792337,0.172556,57952.0,57943.0,0.4129]
[1723747792577,1.03844373,57952.0,57943.0,0.4129]
[1723747793002,1.38355673,57952.0,57943.0,0.4129]
[1723747793421,1.03844373,57952.0,57943.0,0.4129]
[1723747793636,1.03844373,57952.0,57944.0,0.09396727]
[1723747793637,0.68901612,57952.0,57944.0,0.09396727]
[1723747793840,0.68901612,57952.0,57951.0,0.0012]
[1723747793841,1.04012912,57952.0,57951.0,0.0012]
[1723747794505,1.04012912,57952.0,57951.0,0.4133]
[1723747794506,0.34411054,57952.0,57951.0,0.4133]
[1723747794920,0.68922354,57952.0,57951.0,0.4133]
[1723747795127,0.79265619,57952.0,57951.0,0.4133]
[1723747795337,0.17155454,57952.0,57951.0,0.4133]
[1723747795968,0.34411054,57952.0,57951.0,0.4133]
[1723747796209,0.17155454,57952.0,57951.0,0.4133]
[1723747798291,1.03433654,57952.0,57951.0,0.0002]
[1723747798513,1.05149199,57952.0,57951.0,0.0002]
[1723747798723,1.39660499,57952.0,57951.0,0.0002]
[1723747800446,0.34411054,57952.0,57951.0,0.0002]
[1723747800650,0.68922354,57952.0,57951.0,0.001023]
[1723747801485,1.03433654,57952.0,57951.0,0.001023]
[1723747801892,0.68922354,57952.0,57951.0,0.001023]
[1723747802096,0.79265559,57952.0,57951.0,0.001023]
[1723747802309,2.09108343,57952.0,57951.0,0.001023]
[1723747802514,2.21685459,57952.0,57951.0,0.001023]
[1723747802721,2.61131091,57952.0,57951.0,0.001023]
[1723747803788,2.62331091,57952.0,57951.0,0.002023]
[1723747804052,2.68387073,57952.0,57951.0,0.003023]
[1723747804263,2.60012145,57952.0,57951.0,0.003023]
[1723747804511,2.63455421,57952.0,57951.0,0.001]
[1723747804721,2.97966721,57952.0,57951.0,0.001]
[1723747805957,2.97966721,57952.0,57944.0,0.00819]
[1723747805958,1.898347,57945.0,57944.0,0.00819]
[1723747806166,2.87291746,57945.0,57944.0,0.00819]
[1723747807271,2.87291746,57945.0,57911.0,0.0002]
[1723747807272,0.517936,57922.0,57911.0,0.0002]
[1723747807479,0.517936,57922.0,57920.0,0.52289362]
[1723747807480,2.00397254,57922.0,57920.0,0.52289362]
[1723747807710,2.65231291,57922.0,57920.0,0.00823]
[1723747807942,2.67531291,57922.0,57920.0,0.00823]
[1723747808354,1.90393226,57922.0,57920.0,0.00823]
[1723747808561,1.68333226,57922.0,57920.0,0.00823]
[1723747808769,1.2309824,57922.0,57920.0,0.00823]
[1723747808997,0.18025972,57922.0,57920.0,0.00823]
[1723747809224,0.17455454,57922.0,57921.0,0.19062]
[1723747809696,0.003,57922.0,57921.0,0.57822]
[1723747809936,0.4132,57942.0,57922.0,0.3876]
[1723747809937,0.172642,57923.0,57922.0,0.3876]
[1723747810175,0.172645,57922.0,57921.0,0.19062]
[1723747810398,1.38577737,57922.0,57921.0,0.00822]
[1723747810654,1.86964611,57922.0,57921.0,0.00822]
[1723747810898,1.87864611,57922.0,57921.0,0.00922]
[1723747811172,1.54835511,57922.0,57921.0,0.00822]
[1723747811378,1.03678154,57922.0,57921.0,0.00822]
[1723747811605,1.03478154,57922.0,57921.0,0.00822]
[1723747812044,1.04378154,57922.0,57921.0,0.00922]
[1723747812257,1.1836887,57922.0,57921.0,0.00922]
[1723747812468,1.64868461,57922.0,57921.0,0.00822]
[1723747812880,2.06188461,57922.0,57921.0,0.00822]
[1723747813324,2.06988461,57922.0,57921.0,0.00822]
[1723747813538,2.6546949,57922.0,57921.0,0.00822]
[1723747813750,2.84985016,57922.0,57921.0,0.00822]
[1723747813960,2.87853434,57922.0,57921.0,0.00822]
[1723747814173,2.84985016,57922.0,57921.0,0.00822]
[1723747814385,2.88153001,57922.0,57921.0,0.00822]
[1723747814598,3.22682101,57922.0,57921.0,0.00822]
[1723747814808,3.2268234,57922.0,57921.0,0.00822]
[1723747815025,3.35187026,57922.0,57911.0,0.0002]
[1723747815252,2.12303,57912.0,57911.0,0.0002]
[1723747815484,2.12303,57912.0,57887.0,0.5691]
[1723747815485,0.172729,57894.0,57887.0,0.5691]
[1723747815708,2.28588844,57894.0,57886.0,0.00822]
[1723747815926,2.29159663,57894.0,57886.0,0.00822]
[1723747816140,2.3075013,57894.0,57886.0,0.00822]
[1723747816353,2.3075013,57894.0,57875.0,0.0114791]
[1723747816354,1.209481,57876.0,57875.0,0.0114791]
[1723747816583,1.209481,57876.0,57849.0,0.1804967]
[1723747816584,1.087695,57864.0,57849.0,0.1804967]
[1723747816796,1.83344119,57864.0,57849.0,0.1804967]
[1723747817006,2.3278415,57864.0,57849.0,0.1804967]
[1723747817223,2.30207919,57864.0,57849.0,0.1804967]
[1723747817688,1.456333,57864.0,57849.0,0.1804967]
[1723747818391,1.110695,57864.0,57849.0,0.1804967]
[1723747818818,1.124695,57864.0,57849.0,0.1804967]
[1723747819743,1.134695,57864.0,57863.0,0.00922]
[1723747819962,0.024,57864.0,57863.0,0.379442]
[1723747820175,0.024,57864.0,57863.0,0.794342]
[1723747820392,0.51466362,57891.0,57867.0,0.172808]
[1723747820607,0.17155454,57886.0,57871.0,0.4149]
[1723747820821,0.17587381,57885.0,57871.0,0.4149]
[1723747821028,0.17155454,57885.0,57871.0,0.4149]
[1723747821245,0.172783,57876.0,57871.0,0.4149]
[1723747821455,0.172789,57874.0,57871.0,0.4149]
[1723747821668,0.17155454,57873.0,57871.0,0.4149]
[1723747822056,0.172772,57880.0,57871.0,0.4149]
[1723747822294,0.18883174,57879.0,57871.0,0.4159]
[1723747822503,0.518385,57872.0,57871.0,0.4159]
[1723747822709,0.17155454,57872.0,57871.0,0.4149]
[1723747823121,0.34434954,57872.0,57871.0,0.4209]
[1723747823300,0.68993954,57872.0,57871.0,0.4149]
[1723747823548,0.68993954,57872.0,57863.0,0.00822]
[1723747823549,0.172813,57866.0,57864.0,0.3868]
[1723747823758,0.17155454,57866.0,57864.0,0.3868]
[1723747824585,0.173796,57872.0,57871.0,0.008]
[1723747824788,0.001,57872.0,57871.0,0.015]
[1723747824992,0.345543,57880.0,57871.0,0.3868]
[1723747825201,0.34432654,57880.0,57871.0,0.3868]
[1723747825411,0.17155454,57880.0,57871.0,0.3868]
[1723747825618,0.05691,57886.0,57873.0,0.5814]
[1723747825845,0.51466362,57893.0,57874.0,0.3868]
[1723747825846,0.17155454,57885.0,57874.0,0.3868]
[1723747826060,0.00431912,57884.0,57874.0,0.3868]
[1723747826273,0.518358,57875.0,57874.0,0.3868]
[1723747826483,0.518358,57875.0,57871.0,0.000824]
[1723747826484,0.17155454,57875.0,57871.0,0.000824]
[1723747826698,0.17155454,57874.0,57871.0,0.000824]
[1723747827986,0.001,57880.0,57872.0,0.4037]
[1723747828198,0.3778,57899.0,57872.0,0.4037]
[1723747828199,0.51466362,57890.0,57872.0,0.4037]
[1723747828408,0.172749,57888.0,57877.0,0.08577727]
[1723747828631,0.345481,57891.0,57878.0,0.4037]
[1723747828632,0.34430554,57887.0,57878.0,0.4037]
[1723747828844,0.17155454,57887.0,57878.0,0.4037]
[1723747829059,0.172771,57880.0,57878.0,0.4037]
[1723747829294,0.34432854,57879.0,57878.0,0.4037]
[1723747829521,0.17155454,57879.0,57878.0,0.4037]
[1723747829733,0.40317909,57896.0,57878.0,0.4037]
[1723747829938,0.172748,57888.0,57878.0,0.4037]
[1723747830146,0.17155454,57887.0,57879.0,0.08577727]